[Event "Eurasia Open Cup 2018"]
[Site "Jekaterienburg"]
[Date "2018.08.09"]
[Round "8"]
[White "Makhmutov, Rail"]
[Black "Gusarov, Aleksey"]
[Result "1-0"]
[ECO "E06"]
[WhiteElo "2416"]
[BlackElo "2238"]
[Annotator "NA"]
[PlyCount "65"]
[EventDate "2018.08.01"]
[EventType "swiss"]
[EventCountry "RUS"]
[SourceTitle "playchess.com"]
[Source "ChessBase"]
[SourceQuality "1"]
[TimeControl "5400+30"]

1. Nf3 {[%emt 0:00:00]} Nf6 {[%emt 0:00:10]} 2. c4 {[%emt 0:00:15]} e6 {[%emt 0:01:58]} 3. g3 {[%emt 0:00:52]} d5 {[%emt 0:00:22]} 4. Bg2 {[%emt 0:00:41]} Be7 {[%emt 0:01:15]} 5. O-O {[%emt 0:00:15]} O-O {[%emt 0:00:19]} 6. d4 {[%emt 0:02:12]} c5 {[%emt 0:10:56]} 7. cxd5 {[%emt 0:02:05]} Nxd5 {[%emt 0:00:42]} 8. dxc5 {[%emt 0:08:07] E06: Closed Catalan: Early deviations} (8. e4 Nb6 9. Nc3 cxd4 10. Nxd4 e5 11. Ndb5 Nc6 12. Nd5 Be6 13. Nbc7 Nxd5 14. Nxe6 fxe6 15. exd5 exd5 16. Qxd5+ Kh8 17. Be3 Qxd5 18. Bxd5 {1-0 (46) Vijayalakshmi,S (2357)-Szczepkowska,K (2419) Riadh 2017}) 8... Bxc5 {[%emt 0:00:39]} 9. e4 {[%emt 0:03:12]} Nc7 {[%emt 0:02:46]} 10. Qc2 {[%emt 0:06:40]} Qe7 {[%emt 0:01:39]} 11. e5 $146 {[%emt 0:03:53]} ({Predecessor:} 11. Nc3 e5 12. Na4 Nca6 {½-½ (32) Luecke,V (1875)-Dirksen,A (1675) Bad Zwischenahn 2003}) 11... f6 {[%emt 0:05:46]} 12. Nc3 {[%emt 0:08:36]} Bd7 {[%emt 0:04:48]} 13. Ne4 {[%emt 0:03:27]} Bb6 {[%emt 0:01:33]} 14. exf6 {[%emt 0:06:44]} gxf6 {[%emt 0:00:27]} 15. Bh6 {[%emt 0:00:06]} Rd8 {[%emt 0:03:15]} 16. g4 {[%emt 0:07:20]} Nd5 {[%emt 0:31:35]} 17. g5 {[%emt 0:03:41]} f5 {[%emt 0:00:26] [#]} 18. Nf6+ $1 {[%emt 0:00:28]} Nxf6 {[%emt 0:00:21]} 19. gxf6 {[%emt 0:00:01]} Qxf6 {[%emt 0:00:11]} 20. Bg5 {[%emt 0:00:08]} Qg7 {[%emt 0:00:05]} 21. Bxd8 {[%emt 0:00:54]} Bxd8 {[%emt 0:00:05]} 22. Rad1 {[%emt 0:04:51]} Nc6 {[%emt 0:05:59] [#]} 23. Qd3 $1 {[%emt 0:01:39]} Be8 {[%emt 0:01:33]} 24. Qb3 {[%emt 0:02:56]} Kh8 {[%emt 0:12:39]} 25. Qxe6 {[%emt 0:04:15]} Bh5 $18 {[%emt 0:00:15]} 26. Kh1 {[%emt 0:07:09]} Bf6 {[%emt 0:02:18]} 27. Rg1 {[%emt 0:03:15]} Rg8 {[%emt 0:00:33]} 28. Qxf5 {[%emt 0:00:59]} Bg4 {[%emt 0:00:31]} 29. Qe4 {[%emt 0:00:58]} Ne5 {[%emt 0:02:07]} 30. Rde1 {[%emt 0:00:58]} Nd7 {[%emt 0:03:17]} 31. Bh3 {[%emt 0:02:39]} h5 {[%emt 0:01:24]} 32. Bxg4 {[%emt 0:00:16]} hxg4 {[%emt 0:00:04]} 33. Qf5 {[%emt 0:00:41]} 1-0

[Event "Eurasia Open Cup 2018"]
[Site "Jekaterienburg"]
[Date "2018.08.09"]
[Round "8"]
[White "Yeletsky, Ivan"]
[Black "Grachev, Alexey"]
[Result "1/2-1/2"]
[ECO "B69"]
[WhiteElo "2412"]
[BlackElo "2277"]
[Annotator "NA"]
[PlyCount "89"]
[EventDate "2018.08.01"]
[EventType "swiss"]
[EventCountry "RUS"]
[SourceTitle "playchess.com"]
[Source "ChessBase"]
[SourceQuality "1"]
[TimeControl "5400+30"]

1. e4 {[%emt 0:00:00]} c5 {[%emt 0:00:06]} 2. Nf3 {[%emt 0:00:07]} d6 {[%emt 0:00:11]} 3. d4 {[%emt 0:00:08]} cxd4 {[%emt 0:00:09]} 4. Nxd4 {[%emt 0:00:02]} Nf6 {[%emt 0:00:06]} 5. Nc3 {[%emt 0:00:08]} Nc6 {[%emt 0:00:16]} 6. Bg5 {[%emt 0:00:11]} e6 {[%emt 0:00:06]} 7. Qd2 {[%emt 0:00:07]} a6 {[%emt 0:00:07]} 8. O-O-O {[%emt 0:00:05]} Bd7 {[%emt 0:00:09]} 9. f4 {[%emt 0:00:09]} Be7 {[%emt 0:00:34]} 10. Nf3 {[%emt 0:00:10]} b5 {[%emt 0:00:07]} 11. Bxf6 {[%emt 0:00:14]} gxf6 {[%emt 0:00:07]} 12. f5 {[%emt 0:00:06]} Qb6 {[%emt 0:00:07]} 13. Kb1 {[%emt 0:05:09]} O-O-O {[%emt 0:01:02]} 14. g3 {[%emt 0:01:33] B69: Sicilian: Richter-Rauzer: 7...a6 8 0-0-0 Bd7 9 f4 Be7 10 Nf3 b5 11 Bxf6} Kb8 {[%emt 0:00:13]} 15. Bh3 {[%emt 0:00:37]} Na5 {[%emt 0:06:31]} 16. fxe6 {[%emt 0:00:23]} fxe6 {[%emt 0:00:08] [#]} 17. b3 $146 {[%emt 0:04:09]} ({Predecessor:} 17. Nd4 b4 18. Nce2 e5 19. Bxd7 {½-½ (19) Hovhannisyan,R (2601)-Demchenko,A (2672) Batumi 2018}) 17... b4 {[%emt 0:00:56]} 18. Ne2 {[%emt 0:00:07]} Nb7 {[%emt 0:00:32]} 19. Rhe1 {[%emt 0:00:29]} Nc5 {[%emt 0:02:51]} 20. Nf4 {[%emt 0:00:30]} Qb7 {[%emt 0:17:59]} 21. Nd4 {[%emt 0:36:43]} e5 {[%emt 0:08:01]} 22. Bxd7 {[%emt 0:00:14]} Rxd7 {[%emt 0:00:40]} 23. Nde6 {[%emt 0:00:29]} Nxe4 {[%emt 0:01:26]} 24. Rxe4 {[%emt 0:00:13]} Qxe4 {[%emt 0:00:06]} 25. Nd5 {[%emt 0:00:23]} Re8 {[%emt 0:06:06]} 26. h3 {[%emt 0:08:56]} a5 {[%emt 0:03:45]} 27. g4 {[%emt 0:07:59]} Qf3 {[%emt 0:12:24]} 28. Ng7 {[%emt 0:02:54]} (28. Qe1 $1 $11 {bleibt in der Remisbreite.}) 28... Rg8 {[%emt 0:00:12]} 29. Nf5 {[%emt 0:03:55]} Bd8 {[%emt 0:00:12]} 30. Rg1 $2 {[%emt 0:05:16]} (30. Nfe3 $17) 30... h5 {[%emt 0:07:16]} ({Don't take} 30... Qxh3 31. Qe2 $17) 31. Nfe3 {[%emt 0:03:34]} hxg4 {[%emt 0:03:46]} 32. hxg4 {[%emt 0:02:10]} Qe4 $17 {[%emt 0:03:45]} 33. Qe2 {[%emt 0:01:38]} Qd4 {[%emt 0:01:06]} 34. Rd1 {[%emt 0:03:28]} Qc5 {[%emt 0:01:03]} 35. Qh2 {[%emt 0:01:57]} a4 {[%emt 0:02:46]} 36. Qd2 {[%emt 0:00:54]} Rb7 {[%emt 0:01:26]} 37. bxa4 {[%emt 0:05:49]} Qc6 {[%emt 0:02:07]} 38. Qd3 {[%emt 0:01:13]} Rf8 {[%emt 0:05:22]} 39. Qb3 {[%emt 0:01:23]} Qc5 {[%emt 0:02:55]} 40. Nc4 {[%emt 0:00:05]} Rh8 {[%emt 0:01:45]} 41. Nde3 {[%emt 0:02:42]} Bc7 {[%emt 0:00:28]} 42. Nd5 {[%emt 0:01:20]} Bd8 {[%emt 0:01:04]} 43. Nde3 {[%emt 0:00:15]} Bc7 {[%emt 0:00:01]} 44. Nd5 {[%emt 0:00:00]} Bd8 {[%emt 0:00:00]} 45. Nde3 {[%emt 0:00:01]} 1/2-1/2

[Event "Eurasia Open Cup 2018"]
[Site "Jekaterienburg"]
[Date "2018.08.09"]
[Round "8"]
[White "Tsybikov, Tumen"]
[Black "Faizrakhmanov, Ramil"]
[Result "0-1"]
[ECO "B12"]
[WhiteElo "2272"]
[BlackElo "2407"]
[Annotator "NA"]
[PlyCount "44"]
[EventDate "2018.08.01"]
[EventType "swiss"]
[EventCountry "RUS"]
[SourceTitle "playchess.com"]
[Source "ChessBase"]
[SourceQuality "1"]
[TimeControl "5400+30"]

1. e4 {[%emt 0:00:28]} c6 {[%emt 0:00:00]} 2. d4 {[%emt 0:03:25]} d5 {[%emt 0:00:02]} 3. e5 {[%emt 0:00:44]} Bf5 {[%emt 0:00:29]} 4. h4 {[%emt 0:00:06]} h5 {[%emt 0:00:38]} 5. Bd3 {[%emt 0:00:19]} Bxd3 {[%emt 0:00:22]} 6. Qxd3 {[%emt 0:00:06]} e6 {[%emt 0:00:45]} 7. Bg5 {[%emt 0:00:15]} Be7 {[%emt 0:00:35]} 8. Nf3 {[%emt 0:00:23]} Nh6 {[%emt 0:00:22]} 9. Nc3 {[%emt 0:00:44]} Nf5 {[%emt 0:00:27]} 10. Ne2 {[%emt 0:00:06]} c5 {[%emt 0:02:08]} 11. c3 {[%emt 0:06:48]} cxd4 {[%emt 0:02:16]} 12. Nexd4 {[%emt 0:02:00]} Nxd4 {[%emt 0:00:34]} 13. Qxd4 {[%emt 0:00:39]} Nc6 {[%emt 0:02:29]} 14. Qf4 {[%emt 0:01:06]} f6 {[%emt 0:08:19]} 15. exf6 {[%emt 0:02:17]} gxf6 {[%emt 0:05:57]} 16. Bh6 {[%emt 0:02:54]} e5 {[%emt 0:03:15]} 17. Qd2 {[%emt 0:06:33]} Qd7 {[%emt 0:05:15]} 18. O-O-O {[%emt 0:02:07]} Qf5 {[%emt 0:11:56]} 19. a3 {[%emt 0:20:07]} d4 {[%emt 0:04:11]} 20. Rde1 {[%emt 0:02:49]} dxc3 {[%emt 0:04:39]} 21. Qe3 {[%emt 0:00:13]} Na5 {[%emt 0:01:01]} 22. Nd4 {[%emt 0:03:05]} cxb2+ {[%emt 0:00:11]} 0-1

[Event "Eurasia Open Cup 2018"]
[Site "Jekaterienburg"]
[Date "2018.08.09"]
[Round "8"]
[White "Kolomensky, Vladimir"]
[Black "Shapiro, David"]
[Result "0-1"]
[ECO "C42"]
[WhiteElo "2104"]
[BlackElo "2326"]
[Annotator "NA"]
[PlyCount "152"]
[EventDate "2018.08.01"]
[EventType "swiss"]
[EventCountry "RUS"]
[SourceTitle "playchess.com"]
[Source "ChessBase"]
[SourceQuality "1"]
[TimeControl "5400+30"]

1. e4 {[%emt 0:00:00]} e5 {[%emt 0:00:09]} 2. Nf3 {[%emt 0:00:09]} Nf6 {[%emt 0:00:08]} 3. Nxe5 {[%emt 0:00:37]} d6 {[%emt 0:00:08]} 4. Nf3 {[%emt 0:00:07]} Nxe4 {[%emt 0:00:07]} 5. c4 {[%emt 0:01:02]} Nc6 {[%emt 0:01:25]} 6. Nc3 {[%emt 0:01:28]} Nxc3 {[%emt 0:00:20]} 7. dxc3 {[%emt 0:00:10]} Be7 {[%emt 0:00:49]} 8. Bd3 {[%emt 0:15:39]} Bg4 {[%emt 0:03:46] C42: Petroff Defence: 3 Nxe5 and unusual White 3rd moves} 9. Qc2 {[%emt 0:00:25]} (9. Be4 Qd7 10. O-O O-O 11. Qc2 Kh8 12. Nd4 Nxd4 13. cxd4 c6 14. h3 Bh5 15. d5 Bg6 16. dxc6 bxc6 17. Bxg6 fxg6 {1-0 (60) Malakhov,V (2689)-Zhao,Y (2383) China 2018}) 9... Bh5 {[%emt 0:13:28]} 10. Be3 {[%emt 0:02:40]} Bg6 {[%emt 0:01:14]} 11. O-O-O {[%emt 0:16:22]} Qd7 $146 {[%emt 0:00:52]} ({Predecessor:} 11... b6 12. Bxg6 hxg6 13. Qe4 Kd7 14. Rhe1 Qf8 15. c5 Rb8 16. Bf4 bxc5 {1-0 (27) Menendez Rey,F (2205)-Quidiello Prado,M (2166) Asturias 2003}) 12. c5 {[%emt 0:08:23]} O-O-O {[%emt 0:04:24]} 13. Bxg6 {[%emt 0:07:36]} hxg6 {[%emt 0:00:12]} 14. cxd6 {[%emt 0:00:39]} Bxd6 {[%emt 0:00:13]} 15. h3 {[%emt 0:00:24]} Rh5 {[%emt 0:08:17]} 16. Rhe1 {[%emt 0:01:28]} Ne5 {[%emt 0:01:22]} 17. Nd2 {[%emt 0:15:03]} Be7 {[%emt 0:11:20]} 18. Bd4 {[%emt 0:01:38]} Nc6 {[%emt 0:01:32]} 19. Nf3 {[%emt 0:00:59]} Nxd4 $11 {[%emt 0:00:53]} 20. Rxd4 {[%emt 0:00:18]} Bd6 {[%emt 0:00:34]} 21. Kb1 {[%emt 0:05:00]} Re8 {[%emt 0:09:11]} 22. Rde4 {[%emt 0:04:25]} Rxe4 {[%emt 0:02:48]} 23. Rxe4 {[%emt 0:00:29]} Rh8 {[%emt 0:02:29]} 24. Ne5 {[%emt 0:03:47]} Qf5 {[%emt 0:04:07]} 25. Nc4 {[%emt 0:00:25]} Bc5 {[%emt 0:00:59]} 26. f3 {[%emt 0:00:18]} Rd8 {[%emt 0:00:39]} 27. b4 {[%emt 0:00:49]} Bf8 {[%emt 0:03:40]} 28. Kb2 {[%emt 0:00:43]} Qd7 {[%emt 0:04:02]} 29. Rd4 {[%emt 0:00:38]} Qe6 {[%emt 0:00:37]} 30. Re4 {[%emt 0:03:41]} Qd7 {[%emt 0:01:39]} 31. Rd4 {[%emt 0:00:16]} Qc6 {[%emt 0:00:41]} 32. Qd3 {[%emt 0:01:37]} Be7 {[%emt 0:02:30]} 33. Rxd8+ {[%emt 0:03:38]} Bxd8 {[%emt 0:00:02]} 34. Na5 {[%emt 0:00:16]} Qe8 {[%emt 0:04:40]} 35. Nc4 {[%emt 0:03:07]} Bf6 {[%emt 0:02:55]} 36. Ne3 {[%emt 0:01:03]} Bg5 {[%emt 0:00:30]} 37. Nc2 {[%emt 0:00:45]} Qe5 {[%emt 0:02:08]} 38. Qc4 {[%emt 0:00:40]} Qf4 {[%emt 0:03:16]} 39. Qxf4 {[%emt 0:00:22]} Bxf4 {[%emt 0:00:01]} 40. Ne1 {[%emt 0:00:48]} b5 {[%emt 0:01:02]} 41. Nd3 {[%emt 0:00:09]} Bd6 {[%emt 0:00:11]} 42. Kb3 {[%emt 0:00:15]} Kd7 {[%emt 0:00:23]} 43. c4 {[%emt 0:00:08]} c6 {[%emt 0:00:09]} 44. a4 {[%emt 0:00:10]} a6 {[%emt 0:01:58]} 45. cxb5 {[%emt 0:00:20]} cxb5 {[%emt 0:00:06]} 46. axb5 {[%emt 0:00:23]} axb5 {[%emt 0:00:01]} 47. Kc3 {[%emt 0:00:26]} Bg3 {[%emt 0:02:05]} 48. Kd4 {[%emt 0:02:05]} Kd6 {[%emt 0:00:14]} 49. Ke4 {[%emt 0:00:50]} f5+ {[%emt 0:01:19]} 50. Kd4 {[%emt 0:00:01]} g5 {[%emt 0:00:11]} 51. Nc1 {[%emt 0:00:42]} Bf2+ {[%emt 0:00:28]} 52. Kd3 {[%emt 0:00:15]} Be1 {[%emt 0:00:24]} 53. Na2 {[%emt 0:00:05]} Kd5 {[%emt 0:02:32]} 54. Ke2 {[%emt 0:00:01]} Bg3 {[%emt 0:00:08]} 55. Kd3 {[%emt 0:00:08]} Bd6 {[%emt 0:00:40]} 56. Nc3+ {[%emt 0:00:21]} Kc6 {[%emt 0:00:04]} 57. Na2 {[%emt 0:00:14]} Be7 {[%emt 0:00:44]} 58. Ke2 {[%emt 0:00:59]} Kd5 {[%emt 0:00:48]} 59. Kd3 {[%emt 0:00:13]} Bf6 {[%emt 0:00:06]} 60. Nc3+ {[%emt 0:01:26]} Bxc3 {[%emt 0:04:47]} 61. Kxc3 {[%emt 0:00:01]} Ke5 {[%emt 0:00:21]} 62. g3 {[%emt 0:00:38]} g4 {[%emt 0:00:41]} 63. hxg4 {[%emt 0:00:46]} fxg4 {[%emt 0:00:02]} 64. fxg4 {[%emt 0:00:12]} g5 {[%emt 0:01:44]} 65. Kd3 {[%emt 0:00:17]} Kd5 {[%emt 0:00:01]} 66. Ke3 {[%emt 0:01:49]} Kc4 {[%emt 0:00:15]} 67. Ke4 {[%emt 0:00:04]} Kxb4 {[%emt 0:00:03]} 68. Kf5 {[%emt 0:00:05]} Kc5 {[%emt 0:00:29]} 69. Kxg5 {[%emt 0:00:02]} b4 {[%emt 0:00:04]} 70. Kh6 {[%emt 0:00:36]} b3 {[%emt 0:00:07]} 71. g5 {[%emt 0:00:01]} b2 {[%emt 0:00:05]} 72. g6 {[%emt 0:00:04]} b1=Q {[%emt 0:00:06]} 73. g7 {[%emt 0:00:22]} Qh1+ {[%emt 0:01:59]} 74. Kg6 {[%emt 0:00:30]} Qd5 {[%emt 0:00:06]} 75. Kh7 {[%emt 0:00:35]} Qh5+ {[%emt 0:00:04]} 76. Kg8 {[%emt 0:00:22]} Kd6 {[%emt 0:00:11]} 0-1